bitfinex-derivatives/quotes_ETHF0:USTF0_20240913
["timestamp","ask_amount","ask_price","bid_price","bid_amount"]
[1726251899413,0.7845,2411.4,2411.0,0.3804]
[1726251899615,0.41462,2411.3,2411.0,0.3804]
[1726251900108,0.7845,2411.4,2411.0,0.3804]
[1726251900418,6.4378,2411.1,2410.5,3.3038]
[1726251900722,6.4378,2411.1,2410.5,4.00043]
[1726251900723,3.2078,2411.1,2410.5,4.00043]
[1726251901018,0.41467,2411.0,2410.5,4.00043]
[1726251901214,3.2078,2411.1,2410.5,0.79263]
[1726251901215,0.41467,2410.9,2410.5,0.79263]
[1726251901423,0.41467,2410.9,2410.6,3.23]
[1726251901616,0.41469,2410.8,2410.6,3.23]
[1726251901829,0.41467,2411.0,2410.6,3.23]
[1726251902112,3.2078,2411.1,2410.6,3.23]
[1726251902314,0.41468,2410.9,2410.6,3.23]
[1726251902513,0.41467,2411.0,2410.6,3.23]
[1726251902713,3.2078,2411.1,2410.8,0.41468]
[1726251902915,3.2078,2411.1,2410.9,3.23]
[1726251904016,3.2078,2411.1,2410.9,7.378]
[1726251904215,0.7845,2411.4,2411.1,0.41464]
[1726251904417,0.7845,2411.4,2411.2,3.23]
[1726251905117,0.3903,2411.4,2411.2,3.23]
[1726251905726,0.3903,2411.4,2411.2,3.64462]
[1726251906017,0.41455,2411.7,2411.2,3.64462]
[1726251906018,0.41455,2411.7,2411.2,10.99962]
[1726251906226,0.41455,2411.7,2411.2,3.64462]
[1726251906816,0.41454,2411.7,2411.4,3.23]
[1726251907212,0.7762,2411.8,2411.4,3.64457]
[1726251907414,0.7762,2411.8,2411.5,3.23]
[1726251907415,0.3885,2411.8,2411.5,3.23]
[1726251907916,0.80303,2411.8,2411.5,3.23]
[1726251908117,0.3885,2411.8,2411.5,3.23]
[1726251908325,0.3885,2411.8,2411.6,0.41455]
[1726251908528,0.3885,2411.8,2411.5,3.64456]
[1726251908823,3.2078,2411.9,2411.5,3.23]
[1726251909012,3.2078,2411.9,2411.7,3.23]
[1726251910226,0.41449,2412.0,2411.7,3.23]
[1726251910421,0.78858,2412.1,2411.7,3.64453]
[1726251910620,0.3741,2412.1,2411.7,3.23]
[1726251911123,0.3741,2412.1,2411.8,0.79761]
[1726251911723,3.5874,2412.2,2411.9,3.64449]
[1726251911922,3.5874,2412.2,2411.8,0.3831]
[1726251911923,0.3796,2412.2,2412.1,3.64447]
[1726251912423,0.3796,2412.2,2411.9,3.23]
[1726251913027,0.3796,2412.2,2412.1,0.41447]
[1726251913331,3.2078,2412.5,2412.1,6.4378]
[1726251913823,3.2078,2412.5,2412.3,0.41443]
[1726251914019,3.2078,2412.5,2412.2,0.41444]
[1726251914418,3.62221,2412.5,2412.2,0.41444]
[1726251915818,3.62221,2412.5,2412.1,6.4378]
[1726251916023,3.62221,2412.5,2412.3,0.41442]
[1726251916024,3.2078,2412.5,2412.3,0.41442]
[1726251916217,3.2078,2412.5,2412.4,3.64442]
[1726251916433,0.3961,2412.6,2412.5,0.4144]
[1726251916628,0.3961,2412.6,2412.5,4.0393]
[1726251916919,0.41434,2412.9,2412.5,3.6249]
[1726251917124,3.2078,2413.0,2412.7,3.23]
[1726251917125,4.0115,2413.0,2412.7,3.23]
[1726251917323,0.41434,2412.9,2412.7,3.23]
[1726251917920,4.42582,2413.0,2412.7,3.64436]
[1726251918124,4.0115,2413.0,2412.9,3.23]
[1726251918330,0.41433,2412.9,2412.6,0.41437]
[1726251918527,4.0115,2413.0,2412.5,4.03929]
[1726251918528,0.41436,2412.8,2412.5,4.03929]
[1726251919029,0.41436,2412.8,2412.6,0.41438]
[1726251919526,0.41433,2412.9,2412.6,0.41437]
[1726251919830,0.41435,2412.8,2412.7,3.23]
[1726251920721,4.0115,2413.0,2412.7,3.23]
[1726251921139,4.42582,2413.0,2412.8,0.41435]
[1726251921432,4.42582,2413.0,2412.7,3.64435]
[1726251922423,0.41433,2412.9,2412.7,3.64435]
[1726251922623,4.42583,2413.0,2412.8,0.41435]
[1726251923428,0.41433,2412.9,2412.8,0.41435]
[1726251923623,0.41433,2412.9,2412.7,3.64436]
[1726251926132,5.08686435,2413.0,2412.7,3.64436]
[1726251926333,0.41434,2412.9,2412.7,3.64436]
[1726251929728,0.8037,2413.0,2412.7,3.64436]
[1726251929729,0.41435,2412.8,2412.7,3.64436]
[1726251932341,0.41434,2412.9,2412.7,3.64436]
[1726251932639,0.41435,2412.8,2412.7,3.64436]
[1726251933242,0.41435,2412.8,2412.7,3.23]
[1726251933631,0.41438,2412.6,2412.5,0.3949]
[1726251933837,0.4144,2412.5,2412.4,3.23]
[1726251934034,0.4144,2412.5,2412.1,3.2078]
[1726251934035,1.45058,2412.2,2412.1,3.2078]
[1726251934234,3.9745,2412.5,2411.9,4.0402]
[1726251934235,0.41447,2412.1,2411.9,4.0402]
[1726251934436,1.03609,2412.3,2412.0,0.41449]
[1726251934437,0.41446,2412.2,2412.0,0.41449]
[1726251934636,1.03609,2412.3,2411.9,3.6257]
[1726251934637,0.41448,2412.1,2411.9,4.0402]
[1726251935043,0.41449,2412.0,2411.9,3.6257]
[1726251935235,0.41449,2412.0,2411.9,3.23]
[1726251935949,0.41445,2412.2,2412.0,0.41448]
[1726251936144,0.41447,2412.1,2411.9,3.64449]
[1726251936442,0.3928,2412.4,2412.0,0.41448]
[1726251936443,0.41446,2412.2,2412.0,0.41448]
[1726251939145,1.03609,2412.3,2411.9,3.64449]
[1726251939344,0.41448,2412.1,2411.9,3.64449]
[1726251939747,1.03614,2412.2,2411.9,3.23]
[1726251940038,1.03614,2412.2,2411.7,0.3957]
[1726251940039,0.41452,2411.8,2411.7,4.04024]
[1726251940242,0.41452,2411.8,2411.7,3.6257]
[1726251940544,0.41452,2411.8,2411.5,3.23]
[1726251940741,4.3686,2411.9,2411.3,0.387]
[1726251940938,5.40487,2411.9,2411.6,3.23]
[1726251941136,0.41453,2411.8,2411.6,3.64454]
[1726251941442,2.19707,2411.9,2411.6,3.64454]
[1726251941443,1.1608,2411.9,2411.6,3.64455]
[1726251941638,0.41454,2411.7,2411.6,3.23]
[1726251941840,0.41454,2411.7,2411.5,3.2078]
[1726251941841,0.41457,2411.5,2411.4,3.23]
[1726251942153,0.41456,2411.6,2411.4,3.23]
[1726251942345,3.2078,2411.7,2411.4,3.23]
[1726251942655,4.28316435,2412.1,2411.6,3.64455]
[1726251942841,0.41453,2411.8,2411.6,3.23]
[1726251943647,0.41451,2411.9,2411.6,3.64454]
[1726251943846,0.3925,2412.0,2411.6,3.23]
[1726251943847,0.41452,2411.8,2411.6,3.23]
[1726251944242,0.3925,2412.0,2411.6,3.23]
[1726251944444,0.807,2412.0,2411.7,0.41453]
[1726251944646,0.807,2412.0,2411.9,3.23]
[1726251945245,3.2078,2412.1,2411.9,3.23]
[1726251945453,3.62228,2412.1,2411.9,3.23]
[1726251945753,4.00758,2412.1,2411.9,3.23]
[1726251945952,4.00758,2412.1,2411.8,0.3884]
[1726251945953,0.4145,2411.9,2411.8,0.3884]
[1726251946644,0.4145,2411.9,2411.7,3.23]
[1726251947044,0.4145,2411.9,2411.7,3.64454]
[1726251947649,0.41451,2411.9,2411.7,3.23]
[1726251947854,0.41451,2411.9,2411.7,3.64453]
[1726251948357,5.70465435,2412.1,2411.7,3.64453]
[1726251948558,0.41449,2412.0,2411.8,0.41452]
[1726251948851,0.4145,2411.9,2411.7,3.64453]
[1726251949051,0.4145,2412.0,2411.8,0.41452]
[1726251949256,0.4145,2412.0,2411.7,3.64452]
[1726251949756,5.70465435,2412.1,2411.7,3.64452]
[1726251949757,0.4145,2411.9,2411.7,3.64452]
[1726251950256,0.41451,2411.9,2411.7,3.64452]
[1726251950550,0.41449,2412.0,2411.7,3.64452]
[1726251950758,0.4145,2411.9,2411.7,3.64452]
[1726251951154,0.41451,2411.9,2411.7,3.64452]
[1726251952056,1.03626,2411.9,2411.7,3.23]
[1726251952258,0.41456,2411.6,2411.4,3.6003]
[1726251952454,0.4086,2411.5,2411.4,4.01488]
[1726251953757,0.4086,2411.5,2411.4,3.6003]
[1726251953758,0.82317,2411.5,2411.4,3.6003]
[1726251953964,0.82317,2411.5,2411.4,4.01489]
[1726251954270,0.4086,2411.5,2411.4,4.01489]
[1726251954667,1.8596,2411.5,2411.4,0.3703]
[1726251954867,0.4086,2411.5,2411.2,3.6008]
[1726251955069,0.41459,2411.4,2411.2,3.6008]
[1726251955278,0.41459,2411.4,2411.2,4.01541]
[1726251956077,0.4086,2411.5,2411.3,0.4146]
[1726251956277,0.41459,2411.4,2411.3,0.41461]
[1726251956471,0.4086,2411.5,2411.3,3.64461]
[1726251956665,0.41459,2411.4,2411.3,3.23]
[1726251956869,0.82318,2411.5,2411.3,3.6446]
[1726251957270,2.24671435,2411.7,2411.3,3.23]
[1726251957573,1.62331198,2411.8,2411.5,3.23]
[1726251957574,1.03631,2411.8,2411.5,3.23]
[1726251957775,1.03631,2411.8,2411.3,3.2078]
[1726251957776,0.41459,2411.4,2411.3,3.2078]
[1726251957965,0.41459,2411.4,2411.3,6.4378]
[1726251960871,0.41459,2411.4,2411.3,6.85241]
[1726251961274,0.41459,2411.4,2411.3,6.4378]
[1726251962584,8.39148,2411.4,2411.1,3.23]
[1726251962880,0.41462,2411.2,2411.1,3.23]
[1726251963280,1.03648,2411.4,2411.1,3.64464]
[1726251963476,0.41462,2411.2,2411.1,3.23]
[1726251963679,0.41462,2411.2,2411.1,3.64464]
[1726251963873,0.41462,2411.2,2411.1,3.23]
[1726251964079,0.41462,2411.2,2411.1,3.64464]
[1726251964286,0.41461,2411.3,2411.2,0.41462]
[1726251965182,0.41459,2411.4,2411.2,0.41461]
[1726251965384,0.41461,2411.3,2411.2,0.41461]
[1726251965685,0.41461,2411.3,2411.2,3.64461]
[1726251966179,0.41461,2411.3,2411.2,3.23]
[1726251966383,0.41461,2411.3,2411.2,3.64462]
[1726251966777,0.41461,2411.3,2411.2,3.23]
[1726251967081,0.41462,2411.2,2411.1,3.2078]
[1726251968376,1.03653,2411.3,2411.0,3.23]
[1726251968573,0.82094,2411.1,2411.0,3.23]
[1726251968779,0.82094,2411.1,2411.0,3.64466]
[1726251969370,0.82094,2411.1,2411.0,3.23]
[1726251969771,0.82094,2411.1,2411.0,3.64466]
[1726251970276,0.82094,2411.1,2411.0,3.23]
[1726251971481,0.82094,2411.1,2411.0,3.64466]
[1726251971977,1.87856435,2411.5,2411.2,0.41461]
[1726251972189,1.45107,2411.4,2411.3,3.23]
[1726251972483,0.41466,2411.0,2410.9,4.04346]
[1726251972691,0.41466,2411.0,2410.9,3.23]
[1726251973489,1.19906,2411.0,2410.9,3.23]
[1726251978497,1.07536435,2411.3,2411.2,0.41462]
[1726251978691,1.48995435,2411.4,2411.2,3.64462]
[1726251978990,0.41459,2411.4,2411.3,0.3753]
[1726251979293,0.41459,2411.4,2411.3,0.78989]
[1726251979294,1.07536435,2411.4,2411.3,0.78989]
[1726251979589,1.07536435,2411.5,2411.3,4.9371]
[1726251979779,4.69771435,2411.6,2411.4,3.23]
[1726251980181,1.48993435,2411.5,2411.4,3.23]
[1726251980387,0.41459,2411.4,2411.3,0.3753]
[1726251980580,1.49441688,2411.4,2411.3,0.3753]
[1726251980781,1.07982688,2411.4,2411.3,4.5225]
[1726251981387,1.49441688,2411.4,2411.3,0.3753]
[1726251981591,1.49441688,2411.4,2411.3,4.5225]
[1726251981788,1.89010688,2411.5,2411.3,4.5225]
[1726251981993,1.89010688,2411.5,2411.3,0.3753]
[1726251982290,1.07982688,2411.4,2411.3,0.3753]
[1726251982495,1.07982688,2411.4,2411.3,4.5225]
[1726251983090,1.07982688,2411.4,2411.3,0.3753]
[1726251983988,1.07982688,2411.4,2411.3,0.78991]
[1726251984295,1.07982688,2411.4,2411.3,0.3753]
[1726251984596,1.07982688,2411.4,2411.3,4.5225]
[1726251984988,1.07982688,2411.4,2411.3,0.3753]
[1726251985192,1.07982688,2411.4,2411.3,0.78991]
[1726251989101,1.49441688,2411.4,2411.3,0.3753]
[1726251989301,0.41459,2411.4,2411.3,0.3753]
[1726251989601,2.82549198,2411.5,2411.3,0.7899]
[1726251989785,1.08128923,2411.4,2411.3,0.7899]
[1726251990287,0.41459,2411.4,2411.3,0.7899]
[1726251990488,1.08143625,2411.4,2411.3,0.7899]
[1726251990691,2.82550198,2411.5,2411.3,0.7899]
[1726251991298,1.62331198,2411.4,2411.3,0.7899]
[1726251992393,2.43358198,2411.5,2411.4,0.41459]
[1726251992793,0.41459,2411.4,2411.3,0.3753]
[1726251993095,0.41459,2411.4,2411.2,0.41461]
[1726251993096,2.03791715,2411.4,2411.2,0.41461]
[1726251993307,2.70554063,2411.3,2411.2,0.41461]
[1726251993597,1.08230107,2411.3,2411.2,0.41461]
[1726251994597,1.08230107,2411.3,2411.2,3.64461]
[1726251997399,1.62331715,2411.4,2411.3,0.41461]
[1726251999095,2.97523461,2411.5,2411.4,0.41459]
[1726251999298,2.56066461,2411.5,2411.4,0.41459]
[1726251999792,2.16496461,2411.5,2411.4,0.41459]
[1726251999991,3.62236,2411.6,2411.5,0.41457]
[1726252000200,3.62236,2411.6,2411.4,0.41458]
[1726252000394,2.16716814,2411.5,2411.4,0.41458]
[1726252001002,5.37496814,2411.6,2411.5,0.41457]
[1726252001297,5.37496814,2411.6,2411.5,0.79517]
[1726252001704,2.16716814,2411.7,2411.6,0.41455]
[1726252002100,2.55776814,2411.8,2411.7,0.41454]
[1726252002299,0.3906,2411.8,2411.7,0.41454]
[1726252003000,0.80512,2411.8,2411.7,0.41454]
[1726252003208,0.3906,2411.8,2411.6,0.41454]
[1726252003393,1.62509758,2411.7,2411.6,0.41454]
[1726252003904,1.62509758,2411.7,2411.6,3.64454]
[1726252004107,2.03961758,2411.8,2411.7,0.41454]
[1726252004401,2.03961758,2411.8,2411.6,3.23]
[1726252004402,2.03962758,2411.8,2411.6,3.23]
[1726252004606,2.03962758,2411.8,2411.7,0.41454]
[1726252004803,2.42652758,2411.8,2411.7,0.41454]
[1726252005110,2.01199758,2411.8,2411.7,0.41454]
[1726252005301,5.21979758,2411.8,2411.5,0.3806]
[1726252005608,1.08326553,2411.6,2411.5,0.79517]
[1726252005798,2.03963758,2411.7,2411.6,0.41455]
[1726252006001,0.80454,2411.7,2411.6,0.41455]
[1726252006197,0.41457,2411.5,2411.4,1.49]
[1726252006401,0.41459,2411.4,2411.3,0.4146]
[1726252006607,0.41461,2411.3,2411.2,4.6978]
[1726252006805,2.42962278,2411.3,2411.2,4.6978]
[1726252007110,0.80461,2411.3,2411.2,4.6978]
[1726252007310,2.0148943,2411.3,2411.2,4.6978]
[1726252007502,2.4295043,2411.3,2411.2,4.6978]
[1726252007705,2.0148943,2411.3,2411.2,5.11242]
[1726252008007,1.84113,2411.3,2411.2,1.49]
[1726252008305,1.84113,2411.3,2410.8,3.24]
[1726252008306,0.41465,2411.1,2410.8,3.24]
[1726252008507,1.46380604,2411.0,2410.9,0.41467]
[1726252008701,1.87843667,2411.0,2410.8,3.65468]
[1726252008898,1.49764667,2410.9,2410.8,3.24]
[1726252009214,1.45837667,2410.9,2410.8,3.24]
[1726252009606,0.3754,2410.9,2410.8,3.24]
[1726252009916,1.99992741,2410.9,2410.8,3.24]
[1726252010415,0.3754,2410.9,2410.8,3.24]
[1726252010613,1.45788623,2410.9,2410.8,3.24]
[1726252013713,0.3754,2410.9,2410.8,3.24]
[1726252013912,1.45763978,2410.9,2410.8,3.65469]
[1726252014102,1.08223978,2410.9,2410.8,3.65469]
[1726252014712,2.00532741,2411.0,2410.9,0.41467]
[1726252014713,1.08222896,2411.0,2410.9,0.41467]
[1726252014919,1.08222896,2411.1,2411.0,0.41466]
[1726252015108,2.00262741,2411.3,2411.0,0.41466]
[1726252015109,1.08222896,2411.2,2411.1,0.41464]
[1726252015303,1.08222896,2411.2,2411.1,4.03634]
[1726252015714,2.00262741,2411.3,2411.2,0.41462]
[1726252015715,1.46032896,2411.3,2411.2,0.41462]
[1726252017013,0.3781,2411.3,2411.2,0.41462]
[1726252017509,1.08222896,2411.3,2411.2,0.41462]
[1726252017724,1.08222896,2411.4,2411.3,0.41461]
[1726252017919,1.08222896,2411.5,2411.4,0.41459]
[1726252018122,1.08222896,2411.5,2411.4,4.56179]
[1726252018309,2.00262741,2411.6,2411.4,0.41459]
[1726252018512,2.41718741,2411.6,2411.3,6.8624]
[1726252018712,1.08244064,2411.4,2411.3,6.8624]
[1726252019107,1.08244064,2411.4,2411.3,11.0096]
[1726252019312,1.08244064,2411.4,2411.3,6.8624]
[1726252020818,1.49703064,2411.4,2411.3,6.4478]
[1726252021020,2.03911741,2411.4,2411.3,6.4478]
[1726252021217,1.62452741,2411.4,2411.3,6.4478]
[1726252022321,1.62452741,2411.4,2411.3,6.86241]
[1726252022523,2.03911741,2411.4,2411.3,6.4478]
[1726252022821,0.41461,2411.3,2411.2,3.24]
[1726252023029,1.62399884,2411.3,2411.2,3.65462]
[1726252023322,1.08270113,2411.3,2411.2,3.65462]
[1726252024413,1.62399884,2411.4,2411.2,3.65462]
[1726252024608,1.62399884,2411.3,2411.2,3.65462]
[1726252025020,1.08295125,2411.3,2411.2,3.65462]
[1726252025225,1.08295125,2411.3,2411.2,4.14173387]
[1726252025416,1.08295125,2411.4,2411.2,9.32549082]
[1726252025618,1.08295125,2411.4,2411.3,5.17823385]
[1726252025825,1.08295125,2411.4,2411.3,9.32543385]
[1726252026215,2.00209884,2411.6,2411.3,11.08210385]
[1726252026432,1.08297376,2411.4,2411.3,3.62241]
[1726252026723,1.08297376,2411.4,2411.3,4.14171642]
[1726252026923,1.62399884,2411.4,2411.3,0.41461]
[1726252027630,1.62399884,2411.5,2411.4,0.41459]
[1726252027924,1.62399884,2411.5,2411.3,3.65459]
[1726252028223,2.03856884,2411.5,2411.3,3.65459]
[1726252028520,1.62399884,2411.4,2411.3,3.65459]
[1726252029320,1.62399884,2411.4,2411.2,3.24]
[1726252029321,2.03859884,2411.4,2411.2,3.24]
[1726252029522,2.38659884,2411.3,2411.2,3.65462]
[1726252031123,2.80120884,2411.3,2411.2,3.24]
[1726252031324,2.38690704,2411.3,2411.2,3.65462]
[1726252031520,1.62430704,2411.3,2411.2,3.65462]
[1726252031920,2.03889704,2411.4,2411.2,3.65462]
[1726252032126,1.62430704,2411.4,2411.3,3.65461]
[1726252032627,1.62430704,2411.5,2411.3,17.00961]
[1726252032925,1.08310058,2411.7,2411.6,0.41455]
[1726252033129,1.08310058,2411.7,2411.6,0.90160435]
[1726252033344,1.62430704,2411.9,2411.6,4.63345435]
[1726252033345,1.08310058,2411.8,2411.6,4.63345435]
[1726252033531,1.08310058,2411.7,2411.6,0.41454]
[1726252033734,1.08310058,2411.7,2411.6,3.24]
[1726252033927,1.08310058,2411.7,2411.6,7.80095]
[1726252034130,1.08310058,2411.7,2411.6,3.24]
[1726252034338,2.03882704,2411.8,2411.6,3.24]
[1726252034633,1.62430704,2411.7,2411.6,3.24]
[1726252034833,1.62430704,2411.8,2411.6,3.24]
[1726252035128,2.03882704,2411.8,2411.6,3.24]
[1726252035321,1.85422195,2411.7,2411.6,3.24]
[1726252035832,1.85422195,2411.7,2411.4,3.65459]
[1726252035833,4.39394,2411.7,2411.4,3.65459]
[1726252036029,1.0825755,2411.5,2411.4,3.65459]
[1726252036228,2.02186326,2411.6,2411.4,3.24]
[1726252036734,1.0825178,2411.5,2411.4,3.24]
[1726252036930,1.0825178,2411.5,2411.4,3.65459]
[1726252037231,1.0825178,2411.5,2411.4,3.24]
[1726252038631,1.0825178,2411.5,2411.4,3.65459]
[1726252045043,2.03833326,2412.1,2411.5,1.03643]
[1726252045244,0.3841,2412.0,2411.9,3.62229]
[1726252045429,0.3841,2412.0,2411.9,6.86229]
[1726252048235,2.44410326,2412.3,2412.0,0.41447]
[1726252048541,0.7683,2412.2,2412.1,3.24]
[1726252049042,4.9139,2412.2,2412.1,3.24]
[1726252051041,5.32835,2412.2,2412.1,3.24]
[1726252052239,4.9139,2412.2,2412.1,3.65447]
[1726252052742,5.32835,2412.2,2412.1,3.24]
[1726252053144,0.41449,2412.0,2411.9,3.2078]
[1726252053339,0.41452,2411.8,2411.7,3.24]
[1726252053541,1.03635,2411.7,2411.5,3.24]
[1726252053843,4.56095,2411.6,2411.5,3.24]
[1726252054145,0.41455,2411.6,2411.5,3.24]
[1726252054339,4.56095,2411.6,2411.5,3.24]
[1726252055744,0.41459,2411.4,2411.3,6.4478]
[1726252057544,0.41462,2411.2,2411.1,3.24]
[1726252057748,5.76770697,2411.3,2410.9,3.24]
[1726252058046,0.41466,2411.0,2410.9,6.4478]
[1726252058540,4.56266,2411.0,2410.9,6.4478]
[1726252059151,4.56266,2411.0,2410.5,1.18067536]
[1726252059152,14.97630697,2411.0,2410.5,0.096]
[1726252059342,3.2078,2410.6,2410.3,3.24]
[1726252059556,1.1903,2410.5,2410.3,3.24]
[1726252060136,1.60505,2410.5,2410.3,3.24]
[1726252063150,1.1903,2410.5,2410.3,3.65478]
[1726252063350,1.60504,2410.5,2410.3,3.65478]
[1726252063548,1.60504,2410.5,2410.3,3.24]
[1726252063748,1.1903,2410.5,2410.3,3.24]
[1726252063948,1.60505,2410.5,2410.3,3.24]
[1726252064139,1.1903,2410.5,2410.3,3.65477]
[1726252064342,1.60504,2410.5,2410.3,3.24]
[1726252065549,1.1903,2410.5,2410.3,3.65477]
[1726252065751,3.2078,2410.7,2410.3,3.24]
[1726252065949,0.41473,2410.6,2410.5,3.24]
[1726252066359,4.56353,2410.6,2410.5,3.24]
[1726252066553,3.99382,2410.7,2410.5,3.24]
[1726252066753,3.5791,2410.7,2410.5,3.24]
[1726252067157,3.5791,2410.7,2410.5,3.65473]
[1726252067158,0.3713,2410.7,2410.5,3.65473]
[1726252067452,0.3713,2410.7,2410.6,0.3945]
[1726252068152,0.3713,2410.7,2410.6,0.80923]
[1726252068356,0.3713,2410.7,2410.6,0.3945]
[1726252068958,0.3713,2410.7,2410.6,0.80923]
[1726252070058,0.3713,2410.7,2410.6,0.3945]
[1726252070759,0.3713,2410.7,2410.5,3.24]
[1726252070958,0.41473,2410.6,2410.4,3.2078]
[1726252071259,0.78602,2410.7,2410.4,3.2078]
[1726252071448,0.78602,2410.7,2410.6,3.24]
[1726252071650,0.3713,2410.7,2410.6,3.65473]
[1726252071855,0.3713,2410.7,2410.6,3.24]
[1726252072057,0.3713,2410.7,2410.6,3.65473]
[1726252072257,0.3713,2410.7,2410.6,3.24]
[1726252072460,0.3713,2410.7,2410.6,3.65473]
[1726252072858,0.3713,2410.7,2410.6,3.24]
[1726252073164,0.78601,2410.7,2410.6,3.24]
[1726252073362,0.3713,2410.7,2410.6,3.65473]
[1726252074252,0.3713,2410.7,2410.6,3.24]
[1726252074454,0.3713,2410.7,2410.6,3.65473]
[1726252075264,0.79748,2410.9,2410.7,0.4147]
[1726252075469,0.3774,2411.0,2410.9,0.41467]
[1726252075758,0.79206,2411.0,2410.9,3.24]
[1726252076153,0.3774,2411.0,2410.9,3.24]
[1726252076554,1.62050697,2411.5,2410.9,7.388]
[1726252076754,0.41457,2411.5,2411.4,3.24]
[1726252076957,0.3959,2411.6,2411.4,3.24]
[1726252077164,0.41457,2411.5,2411.4,3.24]
[1726252078660,0.81046,2411.6,2411.4,3.24]
[1726252078859,0.3959,2411.6,2411.4,3.65458]
[1726252079062,0.81046,2411.6,2411.4,3.24]
[1726252082569,0.41457,2411.5,2411.4,3.24]
[1726252084150,0.3959,2411.6,2411.4,3.24]
[1726252084355,0.41457,2411.5,2411.4,3.24]
[1726252085766,0.41457,2411.5,2411.4,3.65459]
[1726252085963,0.41457,2411.5,2411.4,3.24]
[1726252088964,0.41457,2411.5,2411.4,3.65459]
[1726252089761,0.3959,2411.6,2411.5,0.41457]
[1726252090066,0.41457,2411.5,2411.4,3.24]
[1726252090270,0.41459,2411.4,2411.3,3.2078]
[1726252090467,0.41459,2411.4,2411.2,3.65461]
[1726252090468,0.81029,2411.4,2411.2,3.65461]
[1726252090766,0.41461,2411.3,2411.2,3.65461]
[1726252091666,0.41461,2411.3,2411.2,3.24]
[1726252093764,0.8103,2411.4,2411.2,3.65461]
[1726252094069,0.4146,2411.4,2411.2,3.65461]
[1726252094672,0.41461,2411.3,2411.2,3.65461]
[1726252094866,0.4146,2411.4,2411.2,3.65461]
[1726252095267,0.41461,2411.3,2411.2,6.86241]
[1726252095669,0.4146,2411.4,2411.2,6.86241]
[1726252097270,0.4146,2411.4,2411.2,6.4478]
[1726252097461,0.4146,2411.4,2411.2,6.86241]
[1726252097858,0.4146,2411.4,2411.3,0.41461]
[1726252098465,0.41461,2411.3,2411.2,6.4478]
[1726252099364,0.41461,2411.3,2411.2,6.86242]
[1726252100071,3.06544697,2411.5,2411.2,6.86242]
[1726252100274,0.41461,2411.3,2411.2,6.4478]
[1726252100772,0.4146,2411.4,2411.2,6.86241]
[1726252101172,0.41461,2411.3,2411.2,6.4478]
[1726252101565,0.41461,2411.3,2411.0,0.3984]
[1726252101566,0.41464,2411.1,2411.0,3.24]
[1726252101778,1.21303,2411.2,2411.0,3.24]
[1726252101965,1.21303,2411.2,2411.0,3.65465]
[1726252102868,0.41464,2411.1,2411.0,3.24]
[1726252103275,0.4067,2411.2,2411.0,3.24]
[1726252103477,0.4067,2411.2,2411.0,3.65464]
[1726252103779,0.41459,2411.4,2411.2,0.41462]
[1726252104078,0.41459,2411.4,2411.2,3.65462]
[1726252104271,0.3705,2411.5,2411.4,0.41459]
[1726252104469,5.15419,2412.1,2411.7,0.41454]
[1726252104666,0.785,2412.0,2411.9,3.24]
[1726252107871,0.3705,2412.0,2411.9,3.6545]
[1726252108064,0.787,2412.2,2411.9,3.24]
[1726252108266,0.41445,2412.3,2412.1,3.24]
[1726252108780,0.41445,2412.2,2412.1,3.24]
[1726252108975,0.41445,2412.2,2411.8,4.0301]
[1726252108976,0.41447,2412.1,2411.9,3.6545]
[1726252109276,2.03041815,2412.2,2411.9,3.6545]
[1726252110873,2.03041815,2412.2,2412.0,0.41448]
[1726252111073,1.61595815,2412.2,2412.1,3.24]
[1726252111275,1.61595815,2412.2,2412.1,3.65447]
[1726252111574,1.61595815,2412.2,2412.1,3.24]
[1726252111882,0.4145,2412.0,2411.8,3.6156]
[1726252112273,0.3806,2411.9,2411.8,3.6156]
[1726252112779,0.3806,2411.9,2411.8,4.03012]
[1726252113173,0.3806,2411.9,2411.8,3.6156]
[1726252113983,0.3806,2411.9,2411.8,4.03012]
[1726252114786,0.3806,2411.9,2411.8,3.6156]
[1726252114978,0.3806,2411.9,2411.8,4.03012]
[1726252119479,0.41448,2412.1,2411.9,0.4145]
[1726252119690,0.41448,2412.1,2412.0,3.24]
[1726252120388,3.06661815,2412.1,2412.0,3.24]
[1726252120582,0.4145,2411.9,2411.8,6.4478]
[1726252120882,0.4145,2411.9,2411.8,6.86232]
[1726252121084,1.1671,2411.9,2411.8,6.86232]
[1726252121278,1.1671,2411.9,2411.8,6.4478]
[1726252121477,5.3135,2411.9,2411.8,3.62232]
[1726252121681,5.3135,2411.9,2411.8,3.2078]
[1726252122178,6.93062287,2411.9,2411.8,3.62232]
[1726252122379,6.93062287,2411.9,2411.8,3.2078]
[1726252123791,6.93062287,2411.9,2411.8,6.4478]
[1726252124377,0.41454,2411.7,2411.6,3.24]
[1726252124583,1.45089,2411.7,2411.6,3.24]
[1726252124879,0.41458,2411.5,2411.4,3.24]
[1726252125686,1.45101,2411.5,2411.4,3.24]
[1726252125889,3.0689884,2411.5,2411.4,3.24]
[1726252126184,1.45101,2411.5,2411.4,3.24]
[1726252126386,3.0689884,2411.5,2411.4,3.24]
[1726252127087,7.2161884,2411.5,2411.4,3.24]
[1726252127287,7.21609115,2411.5,2411.4,3.24]
[1726252127490,5.59821,2411.5,2411.4,3.24]
[1726252127677,7.21604291,2411.5,2411.4,3.24]